Cogmind - Beta 14 @@@ ROGUE MODE // 2025.05.03 @ 09:25:02 Player: obl-vn Result: Destroyed by G-47 Trooper with Particle Gun Performance ------------- Evolutions (3) 1500 Regions Visited (13) 2600 Robots Destroyed (206) 1030 Value Destroyed (8811) 8811 Prototype IDs (25) 500 Alien Tech Used (0) 0 Bonus (5245) 5245 TOTAL SCORE: 19686 Bonus ------- High Alert Combat Kills 3145 Entered Garrisons 600 Used RIF Installer 1500 Cogmind --------- Core Integrity 0/700 Matter 246/300 Energy 98/100 System Corruption 0% Temperature Cool (13) Movement Flying (32) Location -7/Garrison Parts ------- > --- POWER (1) -------- (None) > --- PROPULSION (4) --- VTOL Module VTOL Module > --- UTILITY (6) ------ Relay Coupler [Swarmer] (38) Relay Coupler [Sentry] (34) Relay Coupler [Demolisher] (18) Relay Coupler [Specialist] (28) Relay Coupler [Hunter] (23) > --- WEAPON (2) ------- (None) > --- INVENTORY (5) ---- Relay Coupler [Heavy] (26) Relay Coupler [Behemoth] (16) Firepult Peak State ------------ > --- POWER ------------ Nuclear Core > --- PROPULSION ------- Medium Treads Medium Treads Medium Treads Medium Treads > --- UTILITY ---------- Improved Heat Sink Improved Heat Sink Large Storage Unit Weapon Cycler Hardened Heavy Armor Plating > --- WEAPON ----------- Firepult > --- INVENTORY -------- Micro Nuclear Core Improved Heat Sink High-capacity Matter Pod Relay Coupler [NC] Relay Coupler [Swarmer] Relay Coupler [Grunt] Relay Coupler [Sentry] Relay Coupler [Hunter] Relay Coupler [Heavy] Relay Coupler [Behemoth] Heavy Laser Gatling Laser Heavy Assault Rifle Remote Datajack [Rating: 63] Favorites ----------- Power Improved Ion Engine Engine Improved Ion Engine Power Core Light Nuclear Core Propulsion Light Treads Treads Light Treads Leg Aluminum Leg Wheel Armored Huge Wheel Hover Unit Improved Hover Unit Flight Unit VTOL Module Utility Large Storage Unit Device Improved Heat Sink Storage Large Storage Unit Processor Improved Targeting Computer Hackware Relay Coupler [Swarmer] Protection Hardened Heavy Armor Plating Weapon Heavy Assault Rifle Energy Gun Gatling Laser Energy Cannon Heavy Particle Cannon Ballistic Gun Heavy Assault Rifle Ballistic Cannon Gauss Cannon Launcher Improved Grenade Launcher Special Weapon Remote Datajack Slashing Weapon Katana Special Melee Weapon Improved Datajack Build | -11 -10 -10 -9 -9 -9 -8 -8 -8 -8 -7 -7 -7 -7 ------- Run | Yrd Mat Min Mat Min Exi Min Mat Gar Mat Fac Gar Fac Gar Slots Evolved 6 | . . . 2 . . . 2 . . 2 . . . Power . | . . . . . . . . . . . . . . Propulsion 2 | . . . 1 . . . . . . 1 . . . Utility 4 | . . . 1 . . . 2 . . 1 . . . Weapon . | . . . . . . . . . . . . . . Parts Attached 214 | 7 1 . 62 4 10 1 7 52 14 17 36 2 1 Power 17 | 2 . . 3 . 1 . 2 2 . 1 6 . . Engine 7 | 2 . . 3 . 1 . 1 . . . . . . Core 10 | . . . . . . . 1 2 . 1 6 . . Reactor . | . . . . . . . . . . . . . . Propulsion 59 | 2 . . 26 1 1 . 1 13 5 3 6 1 . Treads 48 | 2 . . 23 1 1 . 1 13 5 1 1 . . Leg 1 | . . . . . . . . . . . 1 . . Wheel 3 | . . . . . . . . . . 2 1 . . Hover 3 | . . . 3 . . . . . . . . . . Flight 4 | . . . . . . . . . . . 3 1 . Utility 58 | 1 1 . 15 . 1 . 3 14 3 6 13 . 1 Device 21 | . 1 . 1 . . . 2 9 2 5 1 . . Storage 9 | 1 . . 5 . 1 . . 1 . 1 . . . Processor 4 | . . . 3 . . . . . . . 1 . . Hackware 8 | . . . . . . . . . . . 7 . 1 Protection 16 | . . . 6 . . . 1 4 1 . 4 . . Artifact . | . . . . . . . . . . . . . . Weapon 80 | 2 . . 18 3 7 1 1 23 6 7 11 1 . Energy Gun 8 | . . . . . . . . . 3 3 2 . . Energy Cannon 17 | . . . 2 2 2 . . 3 . 4 4 . . Ballistic Gun 40 | 2 . . 12 1 5 . 1 13 3 . 3 . . Ballistic Cannon 5 | . . . . . . 1 . 3 . . 1 . . Launcher 6 | . . . 4 . . . . 2 . . . . . Special Weapon 1 | . . . . . . . . . . . 1 . . Impact Weapon . | . . . . . . . . . . . . . . Slashing Weapon 2 | . . . . . . . . 2 . . . . . Piercing Weapon . | . . . . . . . . . . . . . . Special Melee Weapon 1 | . . . . . . . . . . . . 1 . Unidentified Prototypes 2 | . . . 2 . . . . . . . . . . Parts Lost 36 | . . . 2 . . . . 2 3 4 19 . 6 Power 4 | . . . . . . . . . . . 3 . 1 Propulsion 8 | . . . . . . . . . 1 1 4 . 2 Utility 17 | . . . 1 . . . . 1 2 3 9 . 1 Weapon 7 | . . . 1 . . . . 1 . . 3 . 2 Highest Loss Streak 6 | . . . 1 . . . . 1 2 1 5 . 6 To Critical Strikes . | . . . . . . . . . . . . . . Average Slot Usage (%) 92 | . 100 100 97 100 99 99 95 90 88 85 70 89 85 Engine 6 | . 14 14 11 11 11 11 8 1 . . . . . Core 3 | . . . . . . . . 7 9 7 6 7 4 Treads 26 | . 28 28 30 33 33 33 27 27 26 22 4 . . Device 10 | . 14 14 2 11 11 11 13 12 17 23 5 . . Storage 10 | . 14 14 11 11 11 11 9 11 9 7 11 . . Processor 6 | . . . 10 11 11 11 9 3 . . 3 . . Hackware 1 | . . . . . . . . . . . 3 46 44 Protection 6 | . . . 8 . . . 8 9 9 6 8 . . Energy Gun 1 | . . . . . . . . . 8 8 1 . . Ballistic Gun 14 | . 28 28 21 21 19 19 9 12 7 . 6 . . Ballistic Cannon 1 | . . . . . . 1 9 4 1 . . . . Peak Build Rating 63 | 6 10 10 18 21 36 22 29 48 44 63 53 42 42 Average Rating 27 | 5 9 10 14 20 21 21 25 33 38 53 41 38 38 On Entrance 24 | . 6 10 10 17 21 22 21 28 33 44 50 37 42 Naked Turns . | . . . . . . . . . . . . . . Heaviest Build 72 | 14 15 15 35 36 51 36 42 71 60 72 63 9 9 Greatest Support 112 | 40 40 40 60 68 68 68 68 68 84 112 56 16 16 Greatest Overweight (x) 8 | . . . 8 . . . . 1 1 2 2 . . Average Overweight (x) . | . . . . . . . . . . . 1 . . Largest Inventory Capacity 25 | 8 8 8 25 15 15 15 15 15 15 15 15 5 5 Average Capacity 13 | 7 8 8 10 15 15 15 15 15 15 15 14 5 5 Most Carried 15 | 5 8 8 15 15 15 15 15 15 15 15 15 5 5 Average Carried 13 | 1 3 8 10 14 14 14 14 14 14 13 14 5 4 Final Capacity 15 | 8 8 8 15 15 15 15 15 15 15 15 5 5 5 Final Carried 15 | 2 8 8 15 15 15 15 15 15 13 15 5 5 4 Class Distribution -------------------- 40% | Mutant 31% | Scavenger-Mutant 26% | Bothacker-Mutant Dominant Class ---------------- Mutant | -10/Materials Mutant | -10/Mines Scavenger-Mutant | -9/Materials Mutant | -9/Mines Mutant | -9/Exiles Mutant | -8/Mines Mutant | -8/Materials Scavenger-Mutant | -8/Garrison Bothacker-Mutant | -8/Materials Bothacker-Mutant | -7/Factory Bothacker-Mutant | -7/Garrison Bothacker-Sprinter | -7/Factory Bothacker-Sprinter | -7/Garrison Resources | -11 -10 -10 -9 -9 -9 -8 -8 -8 -8 -7 -7 -7 -7 ----------- Run | Yrd Mat Min Mat Min Exi Min Mat Gar Mat Fac Gar Fac Gar Matter Collected 5353 | 183 230 . 1268 62 194 30 144 1376 928 125 775 20 18 Remotely . | . . . . . . . . . . . . . . Salvage Created 7534 | 32 271 . 1990 63 353 . 127 1306 1201 810 1381 . . Parts 397 | 5 27 . 131 9 11 . 6 63 51 27 67 . . Haulers Intercepted 7 | . . . 3 . . . 2 . 2 . . . . Recyclers Shooed 2 | . . . . . . . 1 . 1 . . . . Parts Field Recycled . | . . . . . . . . . . . . . . Retrieved Matter . | . . . . . . . . . . . . . . Parts Self-Destructed . | . . . . . . . . . . . . . . Prevented . | . . . . . . . . . . . . . . Kills | -11 -10 -10 -9 -9 -9 -8 -8 -8 -8 -7 -7 -7 -7 ------- Run | Yrd Mat Min Mat Min Exi Min Mat Gar Mat Fac Gar Fac Gar Combat Hostiles Destroyed 180 | . 7 . 41 4 1 . . 42 24 20 41 . . Guns 104 | . 7 . 26 4 1 . . 13 19 17 17 . . Cannons 39 | . . . . . . . . 19 4 2 14 . . AOE 30 | . . . 14 . . . . 8 . . 8 . . Classes Destroyed 20 | 1 4 . 7 1 1 . . 5 1 . . . . Worker 5 | . 1 . 2 1 . . 1 . . . . . . Builder 2 | . . . 1 . . . . . 1 . . . . Tunneler 4 | 2 1 . . 1 . . . . . . . . . Hauler 7 | . . . 3 . . . 2 . 2 . . . . Recycler 7 | . . . 4 . . . 1 . 2 . . . . Mechanic 1 | . . . 1 . . . . . . . . . . Operator 1 | . 1 . . . . . . . . . . . . Watcher 5 | . . . 3 . . . . . 2 . . . . Swarmer 66 | . 3 . 12 3 . . . 12 5 6 25 . . Cutter 2 | . . . . . . . . . 2 . . . . Grunt 72 | . 4 . 17 . . . . 15 14 9 13 . . Brawler 1 | . . . . . . . . 1 . . . . . Duelist 3 | . . . 2 . . . . . . 1 . . . Sentry 22 | . . . 10 . . . . 6 2 2 2 . . Demolisher 1 | . . . . . . . . 1 . . . . . Specialist 1 | . . . . . . . . 1 . . . . . Hunter 6 | . . . . . 1 . . 2 1 1 1 . . Programmer 4 | . . . . . . . . 3 . 1 . . . Behemoth 1 | . . . . . . . . 1 . . . . . Assembled 1 | . . . . 1 . . . . . . . . . Best Kill Streak 14 | 1 5 . 8 4 1 . 2 7 3 7 14 . . Combat Bots Only 14 | . 5 . 8 3 1 . . 7 3 7 14 . . Max Kills in Single Turn 4 | 1 1 . 3 1 1 . 1 3 2 1 4 . . Gunslinging 1 | . . . 1 . . . . . . . . . . Exploded 4 | . . . 3 . . . . 3 . . 4 . . Melee . | . . . . . . . . . . . . . . Uniques/NPCs Destroyed . | . . . . . . . . . . . . . . Combat | -11 -10 -10 -9 -9 -9 -8 -8 -8 -8 -7 -7 -7 -7 -------- Run | Yrd Mat Min Mat Min Exi Min Mat Gar Mat Fac Gar Fac Gar Hostile Shots Fired 1055 | . 35 . 149 10 . . . 188 134 173 312 6 48 Missed 288 | . 8 . 42 2 . . . 42 40 52 78 1 23 Damage Taken 10866 | . 334 . 1407 121 . . . 2292 1481 1714 3152 71 294 Core 1253 | . 66 . 139 5 . . . 227 107 87 502 14 106 Absorbed by Shields 295 | . . . 40 48 . . . 139 . . . . 68 Redirected to Shielding 8 | . . . 8 . . . . . . . . . . Regen/Repaired (Parts) 318 | . . . 296 . . . 22 . . . . . . Core Remaining (%) 69 | 100 . 73 . . . 64 . . 39 . . . . Volleys Fired 561 | 2 27 . 99 12 42 . 12 103 94 54 103 8 5 Largest 2 | 2 2 . 2 2 2 . 2 2 2 2 2 1 1 Hottest 250 | 40 40 . 88 68 250 . 62 250 160 160 250 5 5 Shots Fired 1002 | 4 54 . 189 22 58 . 24 189 185 97 167 8 5 Gun 758 | 4 54 . 175 20 32 . 12 114 164 77 106 . . Cannon 216 | . . . 5 2 26 . 12 69 21 20 61 . . Launcher 15 | . . . 9 . . . . 6 . . . . . Special 13 | . . . . . . . . . . . . 8 5 Kinetic 716 | 4 54 . 175 20 32 . 24 180 119 . 108 . . Thermal 249 | . . . 5 2 26 . . 3 66 88 59 . . Explosive 15 | . . . 9 . . . . 6 . . . . . Electromagnetic 9 | . . . . . . . . . . 9 . . . Robot Hit Streak 21 | 2 6 . 14 11 19 . 6 16 12 21 21 3 6 Robot Miss Streak 6 | 2 3 . 3 2 2 . 2 3 6 4 3 3 . Penetration Max 1 | . . . . . . . . . 1 . 1 . . Secondary Targets 10 | . . . 3 . . . . . 4 3 . . . Max Gunslinging Chain 1 | . . . 1 . . . . . 1 1 . . . Shots Hit Robots 705 | 2 31 . 136 16 40 . 17 114 137 84 119 4 5 Core Hits 392 | 2 17 . 79 7 18 . 5 70 66 62 66 . . Critical Kills 6 | . 1 . 3 . . . . 1 . . 1 . . Critical Parts Destroyed 1 | . . . 1 . . . . . . . . . . Critical Strikes 20 | . 1 . 4 . . . . 6 4 2 3 . . Burn 2 | . . . . . . . . . . . 2 . . Meltdown 1 | . . . 1 . . . . . . . . . . Destroy 6 | . 1 . 3 . . . . 1 . . 1 . . Blast 9 | . . . . . . . . 5 4 . . . . Corrupt 2 | . . . . . . . . . . 2 . . . Melee Attacks 3 | . . . . . . . . 3 . . . . . Impact . | . . . . . . . . . . . . . . Slashing 3 | . . . . . . . . 3 . . . . . Piercing . | . . . . . . . . . . . . . . Sneak Attacks . | . . . . . . . . . . . . . . Combat Hostiles . | . . . . . . . . . . . . . . Follow-up Attacks . | . . . . . . . . . . . . . . Damage Inflicted 16488 | 35 378 . 2802 252 822 . 301 3511 2777 2086 3524 . . Guns 10025 | 35 378 . 1839 252 370 . 127 1174 2358 1736 1756 . . Cannons 3788 | . . . 82 . 325 . 174 1264 419 350 1174 . . Explosions 2675 | . . . 881 . 127 . . 1073 . . 594 . . Melee . | . . . . . . . . . . . . . . Ramming . | . . . . . . . . . . . . . . Kinetic 8862 | 35 378 . 1839 252 370 . 301 2311 1534 . 1842 . . Thermal 5781 | . . . 82 . 452 . . 436 1243 1886 1682 . . Explosive 1645 | . . . 881 . . . . 764 . . . . . Electromagnetic 200 | . . . . . . . . . . 200 . . . Impact . | . . . . . . . . . . . . . . Slashing . | . . . . . . . . . . . . . . Piercing . | . . . . . . . . . . . . . . Highest Corruption 5 | . . . . . . . . 5 5 . . . . Average Corruption 4 | . . . . . . . . 4 5 . . . . Corruption Purged . | . . . . . . . . . . . . . . Corruption Blocked . | . . . . . . . . . . . . . . Effects 48 | . . . . . . . . 18 30 . . . . Message Errors 12 | . . . . . . . . 6 6 . . . . Matter Fused 8 | . . . . . . . . 2 6 . . . . Heat Flow Errors 8 | . . . . . . . . 4 4 . . . . Energy Discharges 6 | . . . . . . . . 1 5 . . . . Parts Rejected 1 | . . . . . . . . . 1 . . . . Data Loss (minor) 6 | . . . . . . . . 2 4 . . . . Data Loss (major) 2 | . . . . . . . . 1 1 . . . . Misfires 1 | . . . . . . . . 1 . . . . . Alerts 2 | . . . . . . . . 1 1 . . . . Weapon Failures 2 | . . . . . . . . . 2 . . . . Overload Shots . | . . . . . . . . . . . . . . Overflow Damage 124 | . . . 53 . . . 2 64 . . 5 . . Projectiles 23 | . . . . . . . 2 18 . . 3 . . Explosions 101 | . . . 53 . . . . 46 . . 2 . . Melee . | . . . . . . . . . . . . . . Knockbacks 17 | . . . . . . . 1 3 7 . 6 . . Impact . | . . . . . . . . . . . . . . Kinetic 17 | . . . . . . . 1 3 7 . 6 . . Secondary . | . . . . . . . . . . . . . . Self-Inflicted Damage 403 | . . . 40 . . . . 352 . . 11 . . Shots 18 | . . . 2 . . . . 13 . . 3 . . Rammed . | . . . . . . . . . . . . . . Targets Rammed . | . . . . . . . . . . . . . . Kicked . | . . . . . . . . . . . . . . Crushed . | . . . . . . . . . . . . . . Highest Temperature 450 | . 5 . 111 24 206 . . 450 179 386 354 . 5 Average Temperature 107 | . 2 . 23 13 90 . . 136 43 126 135 . 5 Received Heat Transfer 3541 | . 165 . 515 . . . . 670 585 582 867 . 157 Effects 14 | . . . . . . . . 6 . 1 7 . . Shutdowns 3 | . . . . . . . . 2 . . 1 . . Energy Bleed 5 | . . . . . . . . 1 . 1 3 . . Interference 1 | . . . . . . . . 1 . . . . . Matter Decay 2 | . . . . . . . . 2 . . . . . Short Circuit 1 | . . . . . . . . . . . 1 . . Damage (minor) 2 | . . . . . . . . . . . 2 . . Siege Activations . | . . . . . . . . . . . . . . Robots Corrupted . | . . . . . . . . . . . . . . Combat Hostiles . | . . . . . . . . . . . . . . Parts Fried . | . . . . . . . . . . . . . . Impact Corruptions . | . . . . . . . . . . . . . . Robots Melted 7 | . . . 1 . . . . 2 1 1 2 . . Combat Hostiles 7 | . . . 1 . . . . 2 1 1 2 . . Parts Melted 53 | . . . 5 . . . . 10 6 21 11 . . Heat Transferred 15830 | . . . 148 . 1318 . . 2160 2825 3997 5382 . . Parts Sabotaged . | . . . . . . . . . . . . . . Parts Stolen . | . . . . . . . . . . . . . . Parts Stripped . | . . . . . . . . . . . . . . Power Chain Reactions . | . . . . . . . . . . . . . . Alert | -11 -10 -10 -9 -9 -9 -8 -8 -8 -8 -7 -7 -7 -7 ------- Run | Yrd Mat Min Mat Min Exi Min Mat Gar Mat Fac Gar Fac Gar Peak Influence 2259 | 10 221 85 936 440 . . 39 2259 1650 1175 1926 1010 711 Initial 1101 | . 6 85 33 360 . . . 22 1101 750 711 1010 681 Average 777 | 2 122 85 488 260 . . 19 1052 1345 999 1379 992 666 Maximum Alert Level 5 | . 1 . 3 2 . . . 5 5 4 5 3 3 Low Security (%) 18 | 100 65 100 16 20 . 100 100 10 . . . . . Level 1 17 | . 34 . 29 74 . . . 10 . . . . . Level 2 10 | . . . 24 4 . . . 8 . . . . 97 Level 3 22 | . . . 30 . . . . 20 . 89 15 100 2 Level 4 23 | . . . . . . . . 28 93 10 65 . . Level 5 7 | . . . . . . . . 20 6 . 19 . . High Security . | . . . . . . . . . . . . . . Max Security . | . . . . . . . . . . . . . . Squads Dispatched 21 | . 1 . 9 . . . . . 8 3 . . . Investigation 3 | . . . 2 . . . . . 1 . . . . Extermination 1 | . . . . . . . . . . 1 . . . Reinforcement 10 | . 1 . 3 . . . . . 6 . . . . Assault 6 | . . . 4 . . . . . 1 1 . . . Garrison 1 | . . . . . . . . . . 1 . . . Intercept . | . . . . . . . . . . . . . . Searches Triggered . | . . . . . . . . . . . . . . Construction Impeded 2 | . . . 1 . . . . . 1 . . . . Haulers Reinforced . | . . . . . . . . . . . . . . Active Scanning Responses . | . . . . . . . . . . . . . . Cargo Convoy Interrupts . | . . . . . . . . . . . . . . Stealth | -11 -10 -10 -9 -9 -9 -8 -8 -8 -8 -7 -7 -7 -7 --------- Run | Yrd Mat Min Mat Min Exi Min Mat Gar Mat Fac Gar Fac Gar Distress Signals 13 | . 2 . 5 1 . . 1 . 4 . . . . Communications Jammed . | . . . . . . . . . . . . . . Distress Signals . | . . . . . . . . . . . . . . Times Spotted 275 | . 13 . 73 4 . . 3 45 45 31 45 3 13 Peak Tracking Total 13 | . 6 . 11 3 . . 2 6 7 7 13 3 9 Tactical Retreats 17 | . . . 2 . . . 1 3 5 2 3 . 1 Traps | -11 -10 -10 -9 -9 -9 -8 -8 -8 -8 -7 -7 -7 -7 ------- Run | Yrd Mat Min Mat Min Exi Min Mat Gar Mat Fac Gar Fac Gar Traps Triggered 20 | . . . 3 . . . . 4 1 . 5 . 7 Indirectly . | . . . . . . . . . . . . . . Trap Hack Attempts . | . . . . . . . . . . . . . . Triggered . | . . . . . . . . . . . . . . Disarmed . | . . . . . . . . . . . . . . Reprogrammed . | . . . . . . . . . . . . . . Reused . | . . . . . . . . . . . . . . Traps Extracted . | . . . . . . . . . . . . . . Installed . | . . . . . . . . . . . . . . Triggered . | . . . . . . . . . . . . . . Machines | -11 -10 -10 -9 -9 -9 -8 -8 -8 -8 -7 -7 -7 -7 ---------- Run | Yrd Mat Min Mat Min Exi Min Mat Gar Mat Fac Gar Fac Gar Machines Disabled 28 | . . . 3 . . . . 16 2 . 7 . . Max in Single Turn 2 | . . . 1 . . . . 2 1 . 1 . . Garrison Relay 10 | . . . . . . . . 5 . . 5 . . Phase Generator 1 | . . . . . . . . 1 . . . . . Machines Repaired . | . . . . . . . . . . . . . . Machines Dismantled . | . . . . . . . . . . . . . . Machines Sabotaged . | . . . . . . . . . . . . . . Overloaded Fab Kills . | . . . . . . . . . . . . . . Hacking | -11 -10 -10 -9 -9 -9 -8 -8 -8 -8 -7 -7 -7 -7 --------- Run | Yrd Mat Min Mat Min Exi Min Mat Gar Mat Fac Gar Fac Gar Machines Accessed 35 | . 1 . 12 1 5 . 3 3 2 3 1 2 2 Terminals 21 | . 1 . 9 . . . . 3 2 2 1 1 2 Fabricators . | . . . . . . . . . . . . . . Repair Stations 3 | . . . 2 . . . 1 . . . . . . Recycling Units 2 | . . . 1 . . . 1 . . . . . . Scanalyzers . | . . . . . . . . . . . . . . Garrison Access 3 | . . . . . . . 1 . . 1 . 1 . Total Hacks 110 | . 1 . 28 1 50 . 5 6 5 6 1 4 3 Successful 79 | . 1 . 17 1 50 . 4 1 1 2 . 2 . Failed 31 | . . . 11 . . . 1 5 4 4 1 2 3 Catastrophic 7 | . . . 3 . . . . 1 3 . . . . Database Lockouts . | . . . . . . . . . . . . . . Manual 19 | . . . 10 . 5 . . . 4 . . . . Terminals 45 | . 1 . 21 . . . . 6 5 5 1 3 3 Fabricators . | . . . . . . . . . . . . . . Repair Stations 9 | . . . 6 . . . 3 . . . . . . Recycling Units 2 | . . . 1 . . . 1 . . . . . . Scanalyzers . | . . . . . . . . . . . . . . Garrison Access 3 | . . . . . . . 1 . . 1 . 1 . Terminal Hacks 65 | . 1 . 9 1 50 . . 1 1 1 . 1 . Record 55 | . 1 . 5 . 49 . . . . . . . . Open Door 1 | . . . . 1 . . . . . . . . . Open DSF 1 | . . . . . . . . . . 1 . . . Branch Access Points 2 | . . . 1 . . . . . 1 . . . . Emergency Access Points 2 | . . . 1 . . . . 1 . . . . . Locate Traps 2 | . . . 1 . . . . . . . . 1 . Zone Layout 1 | . . . 1 . . . . . . . . . . Derelict Proto ID Bank 1 | . . . . . 1 . . . . . . . . Fabricator Hacks . | . . . . . . . . . . . . . . Repair Station Hacks 8 | . . . 6 . . . 2 . . . . . . Scan Component 4 | . . . 3 . . . 1 . . . . . . Repair 4 | . . . 3 . . . 1 . . . . . . Recycling Unit Hacks 2 | . . . 1 . . . 1 . . . . . . Report Inventory 1 | . . . . . . . 1 . . . . . . Retrieve Components 1 | . . . 1 . . . . . . . . . . Scanalyzer . | . . . . . . . . . . . . . . Garrison Access Hacks 3 | . . . . . . . 1 . . 1 . 1 . Unlock Access 3 | . . . . . . . 1 . . 1 . 1 . Unauthorized Hacks 1 | . . . 1 . . . . . . . . . . Terminals 1 | . . . 1 . . . . . . . . . . Assimilate 1 | . . . 1 . . . . . . . . . . Fabricators . | . . . . . . . . . . . . . . Repair Stations . | . . . . . . . . . . . . . . Recycling Units . | . . . . . . . . . . . . . . Scanalyzers . | . . . . . . . . . . . . . . Garrison Access . | . . . . . . . . . . . . . . Data Cores Recovered . | . . . . . . . . . . . . . . Used . | . . . . . . . . . . . . . . Hacking Detections 21 | . . . 8 . . . 1 3 2 3 1 1 2 Full Trace Events 6 | . . . 3 . . . . 2 1 . . . . Feedback Events . | . . . . . . . . . . . . . . Feedback Blocked . | . . . . . . . . . . . . . . Robot Schematics Acquired . | . . . . . . . . . . . . . . Robots Built . | . . . . . . . . . . . . . . Authchips . | . . . . . . . . . . . . . . Time . | . . . . . . . . . . . . . . Total Robot Build Rating . | . . . . . . . . . . . . . . Part Schematics Acquired . | . . . . . . . . . . . . . . Parts Built . | . . . . . . . . . . . . . . Authchips . | . . . . . . . . . . . . . . Time . | . . . . . . . . . . . . . . Total Part Build Rating . | . . . . . . . . . . . . . . Parts Repaired 4 | . . . 3 . . . 1 . . . . . . Time 110 | . . . 78 . . . 32 . . . . . . Parts Recycled . | . . . . . . . . . . . . . . Recycled Matter . | . . . . . . . . . . . . . . Retrieved Matter . | . . . . . . . . . . . . . . Retrieved Components 9 | . . . 9 . . . . . . . . . . Parts Scanalyzed . | . . . . . . . . . . . . . . Part Schematics Acquired . | . . . . . . . . . . . . . . Parts Damaged . | . . . . . . . . . . . . . . Bothacking | -11 -10 -10 -9 -9 -9 -8 -8 -8 -8 -7 -7 -7 -7 ------------ Run | Yrd Mat Min Mat Min Exi Min Mat Gar Mat Fac Gar Fac Gar Used RIF Installer 3 | . . . . . . . . 1 . . 1 . 1 Coupler Efficiency 1 | . . . . . . . . . . . 1 . . Command Fork 1 | . . . . . . . . . . . . . 1 Robots Hacked 8 | . . . . . . . . . . . . 4 4 Non-combat 1 | . . . . . . . . . . . . 1 . Combat 7 | . . . . . . . . . . . . 3 4 Robot Hacks Applied 8 | . . . . . . . . . . . . 4 4 generate_echo 1 | . . . . . . . . . . . . 1 . disable_weapons 1 | . . . . . . . . . . . . . 1 reboot_system 1 | . . . . . . . . . . . . 1 . streamctrl_high 5 | . . . . . . . . . . . . 2 3 Relay Couplers Released 39 | . . . . . . . . 18 . . 21 . . Machine Destruction 39 | . . . . . . . . 18 . . 21 . . Attached 8 | . . . . . . . . . . . 7 . 1 Fabnet Peak Effective % . | . . . . . . . . . . . . . . Robots Rewired . | . . . . . . . . . . . . . . Allies Hacked . | . . . . . . . . . . . . . . Hacks Repelled . | . . . . . . . . . . . . . . Allies | -11 -10 -10 -9 -9 -9 -8 -8 -8 -8 -7 -7 -7 -7 -------- Run | Yrd Mat Min Mat Min Exi Min Mat Gar Mat Fac Gar Fac Gar Total Allies 6 | . . . 1 . . . . . . . . 2 3 Largest Group 1 | . . . 1 . . . . . . . . 1 1 Highest-Rated Group 34 | . . . 10 . . . . . . . . 12 34 Highest-Rated Ally 34 | . . . 10 . . . . . . . . 12 34 Total Orders . | . . . . . . . . . . . . . . Ally Attacks 9 | . . . . . . . . . . . . 2 7 Total Damage 136 | . . . . . . . . . . . . 14 122 Kills 1 | . . . . . . . . . . . . . 1 Allies Corrupted . | . . . . . . . . . . . . . . Allies Melted . | . . . . . . . . . . . . . . Intel | -11 -10 -10 -9 -9 -9 -8 -8 -8 -8 -7 -7 -7 -7 ------- Run | Yrd Mat Min Mat Min Exi Min Mat Gar Mat Fac Gar Fac Gar Robot Analysis Total . | . . . . . . . . . . . . . . Derelict Logs Recovered 3 | . . . . 3 . . . . . . . . . Drone Launches . | . . . . . . . . . . . . . . Drone Recoveries . | . . . . . . . . . . . . . . Exploration | -11 -10 -10 -9 -9 -9 -8 -8 -8 -8 -7 -7 -7 -7 ------------- Run | Yrd Mat Min Mat Min Exi Min Mat Gar Mat Fac Gar Fac Gar Turns Passed 13481 | 124 232 100 3234 1008 1585 143 657 2822 1097 957 1276 105 141 Spaces Moved 6965 | 74 82 63 1586 445 904 88 297 1404 406 381 756 293 186 Core 17 | 16 . . 1 . . . . . . . . . . Treads 5606 | 58 82 63 1580 445 904 88 297 1404 406 279 . . . Legs . | . . . . . . . . . . . . . . Wheels 854 | . . . . . . . . . . 102 752 . . Hover 5 | . . . 5 . . . . . . . . . . Flight 483 | . . . . . . . . . . . 4 293 186 Fastest Speed 26 | 50 160 160 112 160 160 160 160 160 160 100 29 26 26 Average Speed 145 | 136 160 160 160 160 160 160 160 160 160 145 115 27 30 Slowest Speed 450 | 160 160 160 450 160 160 160 160 240 240 160 130 29 32 Overloaded Moves . | . . . . . . . . . . . . . . Propulsion Burnouts . | . . . . . . . . . . . . . . Robots Hopped 1 | . . . . . . . . . . . . . 1 Cave-ins Triggered . | . . . . . . . . . . . . . . Exploration Rate (%) 46 | 5 22 20 97 88 93 25 28 89 42 9 80 9 37 Regions Visited 13 Branch Regions 4 Pre-discovered Areas 2 | . . . . 1 1 . . . . . . . . Known Exits Taken 5 | . . . 1 . . . 1 . 1 1 . 1 . Unknown Exits Taken 6 | 1 1 1 . 1 1 1 . . . . . . . Scrap Searched 3 | . . . . 2 . 1 . . . . . . . Spaces Dug . | . . . . . . . . . . . . . . Terrain Destroyed 193 | . . . 78 . . . . 98 6 . 11 . . Melee . | . . . . . . . . . . . . . . Projectile 17 | . . . . . . . . . 6 . 11 . . AOE 176 | . . . 78 . . . . 98 . . . . . Terrain Rammed . | . . . . . . . . . . . . . . Walls Destroyed . | . . . . . . . . . . . . . . Machines Disabled . | . . . . . . . . . . . . . . Actions | -11 -10 -10 -9 -9 -9 -8 -8 -8 -8 -7 -7 -7 -7 --------- Run | Yrd Mat Min Mat Min Exi Min Mat Gar Mat Fac Gar Fac Gar Total 9365 | 92 129 62 2101 721 987 91 455 1792 668 690 999 311 267 Wait 1231 | 3 11 . 274 248 17 . 129 160 145 202 30 8 4 Move 6953 | 73 81 62 1585 444 903 87 297 1403 405 381 755 293 184 Hop 1 | . . . . . . . . . . . . . 1 Pick Up 117 | 7 8 . 31 6 6 1 4 20 1 18 15 . . Fast Attach 62 | 1 . . 15 . . 1 3 17 7 5 11 2 . Attach 58 | 5 1 . 10 . 3 . 1 6 2 9 21 . . Detach 7 | . . . 1 . . . . 2 . 1 3 . . Swap 94 | 1 . . 37 4 7 . 3 29 5 3 4 . 1 Drop 166 | . 1 . 49 7 9 2 6 49 9 17 17 . . Fire 561 | 2 27 . 99 12 42 . 12 103 94 54 103 8 5 Melee 3 | . . . . . . . . 3 . . . . . Ram . | . . . . . . . . . . . . . . Kick . | . . . . . . . . . . . . . . Crush . | . . . . . . . . . . . . . . Escape Stasis 112 | . . . . . . . . . . . 40 . 72 Rewire . | . . . . . . . . . . . . . . Trap . | . . . . . . . . . . . . . . Miscellaneous . | . . . . . . . . . . . . . . Route ------- -11/Scrapyard -10/Materials (discovered 2 exits: [*Min x2]) -10/Mines -9/Materials (discovered 6 exits: *Mat x3 / *Min / *Sto x2) -9/Mines (discovered 3 exits: *Mat x2 / *Exi) -9/Exiles -8/Mines -8/Materials (discovered 2 exits: Fac / Gar) -8/Garrison (discovered 3 exits: *Mat x3) -8/Materials -7/Factory -7/Garrison (discovered 3 exits: *Fac x3) -7/Factory -7/Garrison (discovered 1 exit: [*Fac]) History --------- Turn | Location | Event 6 | -11/Scrapyard | Discovered new exit (range 16) 125 | -11/Scrapyard | Entered Materials 284 | -10/Materials | Discovered new exit (range 13) 314 | -10/Materials | Discovered new exit (range 16) 317 | -10/Materials | Build established: Mutant 357 | -10/Materials | Entered Mines 361 | -10/Mines | Met a Derelict bent on vengeance 439 | -10/Mines | Discovered new exit (range 12) 457 | -10/Mines | Entered Materials 457 | -9/Materials | Evolved 2 slots: Propulsion x1, Utility x1 562 | -9/Materials | Repaired Assault Rifle 750 | -9/Materials | Discovered new exit (range 8) 858 | -9/Materials | Discovered new exit (range 9) 1159 | -9/Materials | Discovered new exit (range 14) 1281 | -9/Materials | Build established: Scavenger-Mutant 1723 | -9/Materials | Discovered new exit (range 10) 2057 | -9/Materials | First assault squad dispatched 2182 | -9/Materials | Destroyed 8 combat bots 2407 | -9/Materials | Repaired Lgt. Treads 2434 | -9/Materials | Repaired Lgt. Treads 2446 | -9/Materials | Discovered new exit (range 15) 3505 | -9/Materials | Discovered new exit (range 8) 3634 | -9/Materials | Identified exit to Mines 3634 | -9/Materials | Identified exit to Storage 3691 | -9/Materials | Entered Mines 3700 | -9/Mines | Met a Derelict who couldn't figure out how to use a Trap Extractor 3758 | -9/Mines | A weapon hastily lodged in a ceiling crevice suddenly fell to the ground 3991 | -9/Mines | Build established: Mutant 4002 | -9/Mines | Discovered new exit (range 9) 4029 | -9/Mines | Learned Materials terminal intel 4070 | -9/Mines | Discovered new exit (range 7) 4176 | -9/Mines | Learned 2 Materials zone layouts 4303 | -9/Mines | YI-UF0 nonchalantly dropped a Grenade Launcher on the ground 4441 | -9/Mines | Excavation squad dispatched 4441 | -9/Mines | A large section of the Mines collapsed 4691 | -9/Mines | Excavation squad dispatched 4691 | -9/Mines | Deemed a non-threat by the Exiles lab entrance 4691 | -9/Mines | Discovered new exit (range 5) 4699 | -9/Mines | Entered Exiles 4699 | -9/Exiles | Found Exiles lab destroyed 5386 | -9/Exiles | Learned location of Zion (-6) 5964 | -9/Exiles | Discovered new exit (range 10) 6106 | -9/Exiles | Opened EX-Vault 6115 | -9/Exiles | Found Firepult 6284 | -9/Exiles | Entered Mines 6399 | -8/Mines | Discovered new exit (range 16) 6427 | -8/Mines | Entered Materials 6427 | -8/Materials | Evolved 2 slots: Utility x2 6428 | -8/Materials | Identified exit to Factory 6429 | -8/Materials | Loaded intel: 12 terminal locations 6706 | -8/Materials | Repaired Shield Generator? 7084 | -8/Materials | Identified exit to Garrison 7084 | -8/Materials | Entered Garrison 7132 | -8/Garrison | Triggered checkpoint 7156 | -8/Garrison | Garrison Relay disabled 7256 | -8/Garrison | Triggered checkpoint 7279 | -8/Garrison | Triggered checkpoint 7626 | -8/Garrison | Triggered checkpoint 7703 | -8/Garrison | Destroyed 7 combat bots 7736 | -8/Garrison | Triggered checkpoint 7819 | -8/Garrison | Triggered checkpoint 7888 | -8/Garrison | Garrison Relay disabled 7933 | -8/Garrison | Phase Generator disabled 7933 | -8/Garrison | Discovered new exit (range 9) 8197 | -8/Garrison | Triggered checkpoint 8250 | -8/Garrison | Garrison Relay disabled 8488 | -8/Garrison | Triggered checkpoint 8518 | -8/Garrison | Garrison Relay disabled 8545 | -8/Garrison | Build established: Scavenger-Mutant 8585 | -8/Garrison | Spotted B-75 Beast 8733 | -8/Garrison | Destroyed B-75 Beast 8733 | -8/Garrison | Garrison Relay disabled 8864 | -8/Garrison | Discovered new exit (range 15) 9124 | -8/Garrison | Discovered new exit (range 12) 9658 | -8/Garrison | Installed Relay Interface Framework 9906 | -8/Garrison | Entered Materials 9960 | -8/Materials | Build established: Bothacker-Mutant 10093 | -8/Materials | Core integrity fell below 50% 10306 | -8/Materials | First assault squad dispatched 10971 | -8/Materials | Discovered exit to Factory (range 5) 11003 | -8/Materials | Entered Factory 11003 | -7/Factory | Evolved 2 slots: Propulsion x1, Utility x1 11027 | -7/Factory | Identified exit to DSF 11125 | -7/Factory | Destroyed 7 combat bots 11403 | -7/Factory | First assault squad dispatched 11918 | -7/Factory | Garrison activated, responded to threat 11960 | -7/Factory | Identified exit to Garrison 11960 | -7/Factory | Entered Garrison 12010 | -7/Garrison | Triggered checkpoint 12035 | -7/Garrison | Garrison Relay disabled 12112 | -7/Garrison | Triggered checkpoint 12162 | -7/Garrison | Lost 5 parts (1p2n2u) 12189 | -7/Garrison | Destroyed 14 combat bots 12194 | -7/Garrison | Triggered checkpoint 12229 | -7/Garrison | Garrison Relay disabled 12310 | -7/Garrison | Triggered checkpoint 12323 | -7/Garrison | Core integrity fell below 50% 12353 | -7/Garrison | Garrison Relay disabled 12462 | -7/Garrison | Discovered new exit (range 12) 12525 | -7/Garrison | Triggered checkpoint 12620 | -7/Garrison | Triggered checkpoint 12667 | -7/Garrison | Found Hvy. Insulated Plating 12722 | -7/Garrison | Triggered checkpoint 12754 | -7/Garrison | Garrison Relay disabled 12840 | -7/Garrison | Discovered new exit (range 11) 12994 | -7/Garrison | Discovered new exit (range 10) 13026 | -7/Garrison | Triggered checkpoint 13058 | -7/Garrison | Core integrity fell below 20% 13084 | -7/Garrison | Triggered checkpoint 13088 | -7/Garrison | Garrison Relay disabled 13119 | -7/Garrison | Lost 3 parts (1n1u1w) 13177 | -7/Garrison | Expanded RIF knowledge: Coupler Efficiency 13236 | -7/Garrison | Entered Factory 13341 | -7/Factory | Identified exit to Garrison 13341 | -7/Factory | Entered Garrison 13446 | -7/Garrison | Discovered new exit (range 10) 13449 | -7/Garrison | Triggered checkpoint 13471 | -7/Garrison | Expanded RIF knowledge: Command Fork 13472 | -7/Garrison | Lost 3 allies 13482 | -7/Garrison | Destroyed by G-47 Trooper with Particle Gun Last Messages --------------- 13437_ Trooper 4a destroyed. 13438_ Discarded Relay Coupler [NC]. 13439_ VTOL Module destroyed. 13439_ Jacked D-53 Grenadier... >>streamctrl_high Hijacking control node. 13441_ Grenadier 4a destroyed. 13441_ Jacked G-47 Trooper... >>disable_weapons Deactivating 1 weapon system. 13446_ EXIT=FOUND 13452_ Imp. Datajack destroyed. 13452_ Remote Datajack destroyed. 13458_ Relay Coupler [Grunt] destroyed. 13467_ Acquired 18 matter. Initiating installation procedure... 13471_ Expanded RIF knowledge: Command Fork. 13475_ The unstable cave ceiling collapses. 13480_ Slug penetrates Wall. [Achievement: Just Browsing] Map ----- +----------------------------------------------------+ | ???????????????????????????????????????# | | ???????????????????????????????????????# | | ???????????????????????????????????????# | | ???????????????????????????????????????# ## # | | ??????????????????????????????????????## ## # | | ?????????????????????????????????????? | | ??????????????????????????????????????? | | ????????????????????????????????####??? | | ???????????????????????????????## ###? | | ???????????????????????????????# # ### ## # | | ?????????????????????????????### ## # | | ?????????????????????????????# !%[=[ | | ?????????????????????????????# = | | ?????????????????????????????# | | ?????????????????????????????# # # # # | | ?????????????????????????????# ######### ###??? # | | ?????????????????????????????# #???????# #??????? | | ?????????????????????????????# ######### #??????? | | ?????????????????????????????# # #??????? | | ?????????????????????????????# ## ###### #??????? | | ?????????????????????????????# #??????## ##?????? | | ?????????????????????????????# #??????# #?????? | | ?????????????????????#???????# #??????#" "#?????? | | ????????????????????##+####### #??????#" "#?????? | | ????????????????????# ggb #??????#" "#?????? | | ????????????????????# g @ #??????#"""#?????? | | ????????????????????# < ##### ###??????#####?????? | | ????????????????????# ??????# #??????????????????? | | ????????????????????????????# #????????#######???? | | ????????????????????????????# #????????#"""""#???? | | ???????????????????????###### ########### ##???? | | ???????????????????????#" #???? | | ???????????????????????#"T"#### ###+######???? | | ????????????????????????##????# #?? #????????? | | ??????????????????????????????#######???#????????? | | ?????????????????????????????????????????????????? | | ?????????????????????????????????????????????????? | | ?????????????????????????????????????????????????? | | ?????????????????????????????????????????????????? | | ?????????????????????????????????????????????????? | | ?????????????????????????????????????????????????? | | ?????????????????????????????????????????????????? | | ?????????????????????????????????????????????????? | | ?????????????????????????????????????????????????? | | ?????????????????????????????????????????????????? | | ?????????????????????????????????????????????????? | | ?????????????????????????????????????????????????? | | ?????????????????????????????????????????????????? | | ?????????????????????????????????????????????????? | | ?????????????????????????????????????????????????? | +----------------------------------------------------+ Best States ------------- Heat Dissipation 89 Energy Generation 15 Energy Capacity 265 Matter Stores 500 Matter Capacity 500 Sight Range 16 Robot Scan Range 15 Terrain Scan Range 16 Terrain Scan Density 85 Armor Coverage 975 Resistance: EX 25 Resistance: EM 30 Propulsion Shielding 33 Utility Shielding 66 Weapon Cycling 15 Evasion (%) 64 Targeting Accuracy 6 Recoil Reduction 4 Particle Charging 15 Relay Coupler Types 6 Relay Coupler Value 217 Item Schematics ----------------- None Robot Schematics ------------------ None Fabricated ------------ Nothing Alien Tech Used ----------------- None Achievements -------------- Factory Defaults Just Browsing Challenges ------------ None Game ------ Seed ThrusterStormMeganuke Manual? 0 Play Time 03:17:51 Cumulative 26.9 hours Start 2025.04.27 @ 17:17:18 End 2025.05.03 @ 09:25:02 Sessions 12 Manual Loads 0 Difficulty Rogue Special Mode None Game No. 22 Rogue 22 Adventurer 0 Explorer 0 Win Type - Total 0 Types 0/0/0/0/0/0/0/0/0 Lore% 9 Gallery% 26 Achievement% 28 Wizard Run 0 Options --------- Layout 1 ASCII 0 Keyboard 0 Movement Mouse Keybinds 0 Fullscreen 1 Font 32/SmallcapsGlow Map View 50x35 Zoom Use 0% Tactical HUD 1 Map Filters NONE Filters NONE Steam 1 RUN: 3d8f86bb-55bb-4098-aec3-89f4e77546a6